fUST/lending_fUST_20250610
["ID","MTS","AMOUNT","RATE_DAILY","PERIOD"]
[365211434,1749535842167,-460.0,0.00021643,4]
[365211437,1749535842176,-460.0,0.00021643,4]
[365211440,1749535842187,-374.85028011,0.00021643,4]
[365211443,1749535842198,-379.71631909,0.00021643,4]
[365211446,1749535842208,-325.9180749,0.00021643,4]
[365211449,1749535842217,-460.0,0.00021643,4]
[365211452,1749535842226,-370.0,0.00021643,4]
[365211455,1749535842235,-251.17215879,0.00021643,4]
[365211458,1749535842244,-460.0,0.00021643,4]
[365211461,1749535842253,-381.27121487,0.00021643,4]
[365211464,1749535842263,-317.47346994,0.00021643,4]
[365211467,1749535842272,-460.0,0.00021643,4]
[365211470,1749535842282,-460.0,0.00021643,4]
[365211473,1749535842291,-444.26035766,0.00021643,4]
[365211474,1749535842300,-460.0,0.00021643,4]
[365211476,1749535842309,-415.72641722,0.00021643,4]
[365211477,1749535842320,-460.0,0.00021643,4]
[365211479,1749535842330,-460.0,0.00021643,4]
[365211480,1749535842339,-460.0,0.00021643,4]
[365211482,1749535842349,-460.0,0.00021643,4]
[365211483,1749535842358,-460.0,0.00021643,4]
[365211485,1749535842368,-209.58600549,0.00021643,4]
[365211486,1749535842377,-460.0,0.00021643,4]
[365211488,1749535842388,-460.0,0.00021643,4]
[365211489,1749535842398,-181.73533407,0.00021643,4]
[365211491,1749535842408,-460.0,0.00021643,4]
[365211492,1749535842418,-460.0,0.00021643,4]
[365211494,1749535842428,-460.0,0.00021643,4]
[365211496,1749535842438,-460.0,0.00021643,4]
[365211497,1749535842448,-428.01460355,0.00021643,4]
[365211499,1749535842457,-325.03576064,0.00021643,4]
[365211500,1749535842467,-460.0,0.00021643,4]
[365211502,1749535842476,-460.0,0.00021643,4]
[365211503,1749535842486,-460.0,0.00021643,4]
[365211505,1749535842495,-460.0,0.00021643,4]
[365211507,1749535842505,-460.0,0.00021643,4]
[365211508,1749535842514,-460.0,0.00021643,4]
[365211510,1749535842524,-460.0,0.00021643,4]
[365211511,1749535842533,-241.94191544,0.00021643,4]
[365211513,1749535842543,-472.52,0.00021643,4]
[365211514,1749535842552,-460.0,0.00021643,4]
[365211516,1749535842562,-460.0,0.00021643,4]
[365211517,1749535842571,-460.0,0.00021643,4]
[365211519,1749535842581,-460.0,0.00021643,4]
[365211521,1749535842590,-460.0,0.00021643,4]
[365211522,1749535842600,-460.0,0.00021643,4]
[365211524,1749535842609,-365.12664322,0.00021643,4]
[365211526,1749535842618,-460.0,0.00021643,4]
[365211527,1749535842628,-460.0,0.00021643,4]
[365211529,1749535842639,-460.0,0.00021643,4]
[365211530,1749535842649,-240.01621852,0.00021643,4]
[365211538,1749535842748,-350.0,0.00021643,2]
[365211540,1749535842758,-460.0,0.00021643,4]
[365211542,1749535842767,-460.0,0.00021643,4]
[365211543,1749535842777,-348.00197936,0.00021643,4]
[365211545,1749535842786,-460.0,0.00021643,4]
[365211547,1749535842796,-460.0,0.00021643,4]
[365211548,1749535842806,-460.0,0.00021643,4]
[365211550,1749535842815,-382.53261653,0.00021643,4]
[365211551,1749535842824,-460.0,0.00021643,4]
[365211552,1749535842834,-460.0,0.00021643,4]
[365211553,1749535842844,-460.0,0.00021643,4]
[365211554,1749535842854,-460.0,0.00021643,4]
[365211555,1749535842864,-325.10572443,0.00021643,4]
[365211556,1749535842874,-460.0,0.00021643,4]
[365211557,1749535842884,-460.0,0.00021643,4]
[365211559,1749535842893,-500.0,0.00021643,4]
[365211561,1749535842903,-460.0,0.00021643,4]
[365211563,1749535842914,-460.0,0.00021643,4]
[365211565,1749535842925,-460.0,0.00021643,4]
[365211567,1749535842935,-460.0,0.00021643,4]
[365211569,1749535842947,-460.0,0.00021643,4]
[365211571,1749535842956,-460.0,0.00021643,4]
[365211573,1749535842966,-460.0,0.00021643,4]
[365211575,1749535842977,-1310.73,0.00021643,4]
[365211577,1749535842987,-460.0,0.00021643,4]
[365211579,1749535842996,-460.0,0.00021643,4]
[365211581,1749535843006,-460.0,0.00021643,4]
[365211583,1749535843015,-460.0,0.00021643,4]
[365211585,1749535843025,-460.0,0.00021643,4]
[365211587,1749535843034,-460.0,0.00021643,4]
[365211589,1749535843044,-460.0,0.00021643,4]
[365211591,1749535843054,-460.0,0.00021643,4]
[365211593,1749535843064,-460.0,0.00021643,4]
[365211595,1749535843074,-460.0,0.00021643,4]
[365211596,1749535843084,-589.78709743,0.00021643,4]
[365211597,1749535843093,-509.7113797,0.00021643,4]
[365211598,1749535843104,-669.91,0.00021643,4]
[365211599,1749535843115,-460.0,0.00021643,4]
[365211600,1749535843124,-460.0,0.00021643,4]
[365211601,1749535843134,-460.0,0.00021643,4]
[365211602,1749535843144,-460.0,0.00021643,4]
[365211603,1749535843155,-559.29542589,0.00021643,4]
[365211604,1749535843164,-460.0,0.00021643,4]
[365211605,1749535843174,-460.0,0.00021643,4]
[365211606,1749535843184,-460.0,0.00021643,4]
[365211607,1749535843195,-460.0,0.00021643,4]
[365211608,1749535843204,-460.0,0.00021643,4]
[365211609,1749535843214,-152.76320497,0.00021643,4]
[365211610,1749535843223,-460.0,0.00021643,2]
[365211611,1749535843233,-893.64,0.00021643,4]
[365211612,1749535843242,-390.35094839,0.00021643,4]
[365211613,1749535843252,-1892.4176635,0.00021643,4]
[365211617,1749535843629,-500.0,0.0002109,2]
[365211618,1749535843638,-500.0,0.0002109,2]
[365211619,1749535843648,-500.0,0.0002109,2]
[365211620,1749535843657,-500.0,0.0002109,2]
[365211621,1749535843667,-500.0,0.0002109,2]
[365211622,1749535843676,-500.0,0.0002109,2]
[365211623,1749535843686,-500.0,0.0002109,2]
[365211624,1749535843695,-500.0,0.0002109,2]
[365211625,1749535843705,-500.0,0.0002109,2]
[365211626,1749535843714,-500.0,0.0002109,2]
[365211627,1749535843723,-500.0,0.0002109,2]
[365211628,1749535843733,-500.0,0.0002109,2]
[365211629,1749535843742,-500.0,0.0002109,2]
[365211630,1749535843752,-500.0,0.0002109,2]
[365211631,1749535843761,-500.0,0.0002109,2]
[365211632,1749535843771,-500.0,0.0002109,2]
[365211633,1749535843780,-500.0,0.0002109,2]
[365211634,1749535843790,-500.0,0.0002109,2]
[365211635,1749535843799,-500.0,0.0002109,2]
[365211636,1749535843809,-500.0,0.0002109,2]
[365211637,1749535843818,-500.0,0.0002109,2]
[365211638,1749535843828,-500.0,0.0002109,2]
[365211639,1749535843837,-500.0,0.0002109,2]
[365211640,1749535843847,-500.0,0.0002109,2]
[365211641,1749535843857,-500.0,0.0002109,2]
[365211642,1749535843867,-500.0,0.0002109,2]
[365211643,1749535843876,-500.0,0.0002109,2]
[365211644,1749535843886,-500.0,0.0002109,2]
[365211645,1749535843895,-500.0,0.0002109,2]
[365211646,1749535843905,-500.0,0.0002109,2]
[365211647,1749535843914,-500.0,0.0002109,2]
[365211648,1749535843923,-500.0,0.0002109,2]
[365211650,1749535843934,-500.0,0.0002109,2]
[365211651,1749535843944,-500.0,0.0002109,2]
[365211652,1749535843954,-500.0,0.0002109,2]
[365211653,1749535843964,-500.0,0.0002109,2]
[365211655,1749535843974,-500.0,0.0002109,2]
[365211657,1749535843984,-500.0,0.0002109,2]
[365211658,1749535843993,-500.0,0.0002109,2]
[365211659,1749535844003,-361.44146629,0.00021095,4]
[365211660,1749535844012,-460.0,0.00021095,4]
[365211661,1749535844022,-460.0,0.00021095,4]
[365211662,1749535844031,-460.0,0.00021369,4]
[365211663,1749535844040,-1669.2223365,0.00021643,4]
[365211664,1749535844049,-460.0,0.00021643,4]
[365211665,1749535844059,-460.0,0.00021643,4]
[365211666,1749535844069,-377.22881143,0.00021643,4]
[365211667,1749535844078,-910.71,0.00021643,4]
[365211668,1749535844087,-460.0,0.00021643,4]
[365211669,1749535844096,-1028.51,0.00021643,4]
[365211670,1749535844108,-236.2756213,0.00021643,4]
[365211671,1749535844118,-460.0,0.00021643,4]
[365211672,1749535844129,-1079.41,0.00021643,4]
[365211673,1749535844138,-460.0,0.00021643,4]
[365211674,1749535844149,-460.0,0.00021643,4]
[365211675,1749535844159,-460.0,0.00021643,4]
[365211676,1749535844168,-232.3758576,0.00021643,4]
[365211677,1749535844178,-460.0,0.00021643,4]
[365211678,1749535844187,-460.0,0.00021643,4]
[365211679,1749535844198,-460.0,0.00021643,4]
[365211680,1749535844207,-460.0,0.00021643,4]
[365211681,1749535844217,-460.0,0.00021643,4]
[365211682,1749535844226,-460.0,0.00021643,4]
[365211683,1749535844236,-460.0,0.00021643,4]
[365211684,1749535844246,-392.76347579,0.00021643,4]
[365211685,1749535844256,-460.0,0.00021643,4]
[365211686,1749535844266,-382.67796825,0.00021643,4]
[365211687,1749535844275,-283.18505387,0.00021643,4]
[365211688,1749535844285,-460.0,0.00021643,4]
[365211689,1749535844295,-839.23,0.00021643,4]
[365211690,1749535844305,-460.0,0.00021643,4]
[365211691,1749535844315,-460.0,0.00021643,4]
[365211692,1749535844324,-460.0,0.00021643,4]
[365211693,1749535844334,-460.0,0.00021643,4]
[365211694,1749535844343,-460.0,0.00021643,4]
[365211695,1749535844353,-460.0,0.00021643,4]
[365211696,1749535844363,-1128.69,0.00021643,4]
[365211697,1749535844373,-460.0,0.00021643,4]
[365211698,1749535844384,-460.0,0.00021643,4]
[365211700,1749535844393,-414.39519091,0.00021643,4]
[365211701,1749535844404,-157.218033,0.00021662,2]
[365211702,1749535844413,-500.0,0.0002167,4]
[365211703,1749535844423,-500.0,0.0002167,4]
[365211704,1749535844432,-500.0,0.00021673,2]
[365211705,1749535844442,-500.0,0.00021673,2]
[365211706,1749535844452,-600.0,0.00021673,2]
[365211707,1749535844462,-500.0,0.00021673,2]
[365211708,1749535844471,-500.0,0.00021673,2]
[365211709,1749535844480,-160.0,0.00021691,2]
[365211710,1749535844490,-160.0,0.00021691,2]
[365211711,1749535844500,-842.5625,0.00021691,2]
[365211712,1749535844510,-424.12530924,0.00021691,2]
[365211713,1749535844519,-834.9046531,0.00021691,2]
[365211714,1749535844529,-160.0,0.00021691,2]
[365211715,1749535844540,-229.6792923,0.00021691,2]
[365211716,1749535844549,-500.0,0.00021697,4]
[365211717,1749535844559,-505.67156772,0.00021697,4]
[365211718,1749535844569,-515.18519638,0.00021725,4]
[365211719,1749535844579,-532.23156361,0.00021797,6]
[365211720,1749535844589,-1448.0,0.0002181,7]
[365211721,1749535844599,-1583.97769957,0.00021817,2]
[365211722,1749535844608,-420.0,0.00021883,2]
[365211723,1749535844704,-1168.09322686,0.000219,2]
[365211724,1749535844714,-352.56146568,0.00021917,4]
[365211725,1749535844724,-300.0,0.00021917,4]
[365211726,1749535844734,-460.0,0.00021917,4]
[365211727,1749535844744,-380.0,0.00021917,4]
[365211728,1749535844753,-460.0,0.00021917,4]
[365211729,1749535844763,-460.0,0.00021917,4]
[365211730,1749535844772,-460.0,0.00021917,4]
[365211731,1749535844781,-455.85085723,0.00021917,4]
[365211732,1749535844791,-460.0,0.00021917,4]
[365211733,1749535844800,-460.0,0.00021917,4]
[365211734,1749535844810,-460.0,0.00021917,4]
[365211735,1749535844819,-165.46,0.00021917,4]
[365211736,1749535844829,-358.9374528,0.00021917,4]
[365211737,1749535844838,-460.0,0.00021917,4]
[365211738,1749535844848,-460.0,0.00021917,4]
[365211739,1749535844857,-460.0,0.00021917,4]
[365211740,1749535844867,-460.0,0.00021917,4]
[365211741,1749535844877,-460.0,0.00021917,4]
[365211742,1749535844886,-460.0,0.00021917,4]
[365211743,1749535844896,-460.0,0.00021917,4]
[365211744,1749535844906,-460.0,0.00021917,4]
[365211745,1749535844916,-350.99535333,0.00021917,4]
[365211746,1749535844925,-460.0,0.00021917,4]
[365211747,1749535844935,-527.65254462,0.00021917,4]
[365211748,1749535844946,-362.22874961,0.00021917,4]
[365211749,1749535844956,-279.16264308,0.00021917,4]
[365211750,1749535844965,-312.85720107,0.00021917,4]
[365211751,1749535844975,-460.0,0.00021917,4]
[365211752,1749535844985,-499.29095711,0.00021917,4]
[365211753,1749535844994,-285.86692134,0.00021917,4]
[365211754,1749535845003,-460.0,0.00021917,4]
[365211755,1749535845013,-460.0,0.00021917,4]
[365211756,1749535845022,-460.0,0.00021917,4]
[365211757,1749535845032,-460.0,0.00021917,4]
[365211758,1749535845042,-460.0,0.00021917,4]
[365211759,1749535845051,-460.0,0.00021917,4]
[365211760,1749535845061,-460.0,0.00021917,4]
[365211761,1749535845071,-460.0,0.00021917,4]
[365211762,1749535845081,-460.0,0.00021917,4]
[365211763,1749535845090,-460.0,0.00021917,4]
[365211764,1749535845100,-460.0,0.00021917,4]
[365211765,1749535845113,-350.0,0.00021917,2]
[365211766,1749535845122,-460.0,0.00021917,4]
[365211767,1749535845132,-460.0,0.00021917,4]
[365211768,1749535845142,-460.0,0.00021917,4]
[365211769,1749535845152,-460.0,0.00021917,4]
[365211770,1749535845161,-460.0,0.00021917,4]
[365211771,1749535845171,-460.0,0.00021917,4]
[365211772,1749535845180,-460.0,0.00021917,4]
[365211773,1749535845190,-460.0,0.00021917,4]
[365211774,1749535845201,-460.0,0.00021917,4]
[365211775,1749535845210,-460.0,0.00021917,4]
[365211776,1749535845219,-460.0,0.00021917,4]
[365211777,1749535845228,-500.0,0.00021917,4]
[365211778,1749535845238,-364.51998405,0.00021917,4]
[365211779,1749535845248,-460.0,0.00021917,4]
[365211780,1749535845257,-460.0,0.00021917,4]
[365211781,1749535845267,-460.0,0.00021917,4]
[365211782,1749535845276,-460.0,0.00021917,4]
[365211783,1749535845285,-460.0,0.00021917,4]
[365211784,1749535845295,-460.0,0.00021917,4]
[365211785,1749535845304,-1310.73,0.00021917,4]
[365211786,1749535845314,-247.99266513,0.00021917,4]
[365211787,1749535845323,-429.28297048,0.00021917,4]
[365211788,1749535845333,-460.0,0.00021917,4]
[365211789,1749535845342,-460.0,0.00021917,4]
[365211790,1749535845351,-460.0,0.00021917,4]
[365211791,1749535845361,-460.0,0.00021917,4]
[365211792,1749535845371,-460.0,0.00021917,4]
[365211793,1749535845380,-460.0,0.00021917,4]
[365211794,1749535845390,-460.0,0.00021917,4]
[365211795,1749535845399,-460.0,0.00021917,4]
[365211796,1749535845409,-669.91,0.00021917,4]
[365211797,1749535845419,-460.0,0.00021917,4]
[365211798,1749535845429,-460.0,0.00021917,4]
[365211799,1749535845439,-460.0,0.00021917,4]
[365211800,1749535845450,-573.5839524,0.00021917,4]
[365211801,1749535845460,-460.0,0.00021917,4]
[365211802,1749535845470,-460.0,0.00021917,4]
[365211803,1749535845478,-460.0,0.00021917,4]
[365211804,1749535845487,-460.0,0.00021917,4]
[365211805,1749535845496,-460.0,0.00021917,4]
[365211806,1749535845506,-460.0,0.00021917,2]
[365211807,1749535845515,-893.64,0.00021917,4]
[365211808,1749535845525,-3561.64,0.00021917,4]
[365211809,1749535845534,-460.0,0.00021917,4]
[365211810,1749535845544,-460.0,0.00021917,4]
[365211811,1749535845554,-910.71,0.00021917,4]
[365211812,1749535845563,-460.0,0.00021917,4]
[365211813,1749535845573,-1028.51,0.00021917,4]
[365211814,1749535845583,-460.0,0.00021917,4]
[365211815,1749535845593,-1079.41,0.00021917,4]
[365211816,1749535845602,-274.14574869,0.00021917,4]
[365211817,1749535845612,-587.64310992,0.00021917,4]
[365211818,1749535845621,-460.0,0.00021917,4]
[365211819,1749535845631,-460.0,0.00021917,4]
[365211820,1749535845640,-460.0,0.00021917,4]
[365211821,1749535845651,-460.0,0.00021917,4]
[365211822,1749535845660,-460.0,0.00021917,4]
[365211823,1749535845669,-460.0,0.00021917,4]
[365211824,1749535845679,-174.4262061,0.00021917,4]
[365211825,1749535845688,-460.0,0.00021917,4]
[365211826,1749535845698,-460.0,0.00021917,4]
[365211827,1749535845707,-359.37128976,0.00021917,4]
[365211828,1749535845717,-839.23,0.00021917,4]
[365211829,1749535845726,-460.0,0.00021917,4]
[365211830,1749535845736,-460.0,0.00021917,4]
[365211831,1749535845745,-457.79821121,0.00021917,4]
[365211832,1749535845755,-460.0,0.00021917,4]
[365211833,1749535845764,-460.0,0.00021917,4]
[365211834,1749535845774,-460.0,0.00021917,4]
[365211835,1749535845784,-1128.69,0.00021917,4]
[365211836,1749535845793,-460.0,0.00021917,4]
[365211837,1749535845803,-460.0,0.00021917,4]
[365211838,1749535845812,-500.0,0.00021921,2]
[365211839,1749535845821,-467.0203816,0.00021921,2]
[365211840,1749535845830,-1448.0,0.00021933,7]
[365211841,1749535845839,-190.263646,0.00021958,2]
[365211842,1749535845849,-532.23156361,0.00021969,6]
[365211843,1749535845859,-515.14269437,0.00021973,2]
[365211844,1749535845868,-500.0,0.00021973,2]
[365211845,1749535845877,-500.0,0.00021973,2]
[365211846,1749535845886,-501.75429769,0.00021973,2]
[365211847,1749535845896,-2046.86,0.0002198,2]
[365211848,1749535845906,-68738.79,0.00022,7]
[365211849,1749535845915,-161.0,0.00022,2]
[365211850,1749535845924,-3439.46512918,0.00022,2]
[365211851,1749535845935,-186.0,0.00022,2]
[365211852,1749535845945,-151.0,0.00022,7]
[365211853,1749535845955,-151.0,0.00022,7]
[365211854,1749535845965,-151.0,0.00022,7]
[365211855,1749535845974,-152.066075,0.00022,7]
[365211856,1749535845984,-151.0,0.00022,7]
[365211857,1749535845993,-243.08481715,0.00022031,2]
[365211858,1749535846003,-1448.0,0.00022056,7]
[365211859,1749535846012,-3000.0,0.000221,2]
[365211860,1749535846021,-3000.0,0.0002211,2]
[365211861,1749535846030,-3000.0,0.0002212,2]
[365211862,1749535846039,-3000.0,0.0002213,2]
[365211863,1749535846048,-3000.0,0.0002214,2]
[365211864,1749535846059,-532.23156361,0.00022141,6]
[365211865,1749535846068,-3000.0,0.0002215,2]
[365211866,1749535846077,-3000.0,0.0002216,2]
[365211867,1749535846086,-505.8254603,0.00022168,2]
[365211868,1749535846096,-1523.08834747,0.00022168,2]
[365211869,1749535846108,-3000.0,0.0002217,2]
[365211870,1749535846118,-1448.0,0.0002218,7]
[365211871,1749535846127,-3000.0,0.0002218,2]
[365211872,1749535846136,-3000.0,0.0002219,2]
[365211873,1749535846147,-310.0,0.00022191,4]
[365211874,1749535846156,-360.0,0.00022191,4]
[365211875,1749535846165,-460.0,0.00022191,4]
[365211876,1749535846174,-460.0,0.00022191,4]
[365211877,1749535846183,-460.0,0.00022191,4]
[365211878,1749535846192,-172.08974495,0.00022191,4]
[365211879,1749535846202,-460.0,0.00022191,4]
[365211880,1749535846212,-460.0,0.00022191,4]
[365211881,1749535846221,-460.0,0.00022191,4]
[365211882,1749535846231,-460.0,0.00022191,4]
[365211883,1749535846240,-545.36606361,0.00022191,4]
[365211884,1749535846249,-460.0,0.00022191,4]
[365211885,1749535846258,-460.0,0.00022191,4]
[365211886,1749535846268,-411.91884581,0.00022191,4]
[365211887,1749535846277,-460.0,0.00022191,4]
[365211888,1749535846286,-460.0,0.00022191,4]
[365211889,1749535846295,-460.0,0.00022191,4]
[365211890,1749535846304,-518.41372255,0.00022191,4]
[365211891,1749535846314,-460.0,0.00022191,4]
[365211892,1749535846323,-460.0,0.00022191,4]
[365211893,1749535846333,-460.0,0.00022191,4]
[365211894,1749535846343,-460.0,0.00022191,4]
[365211895,1749535846352,-460.0,0.00022191,4]
[365211896,1749535846363,-460.0,0.00022191,4]
[365211897,1749535846372,-460.0,0.00022191,4]
[365211898,1749535846382,-460.0,0.00022191,4]
[365211899,1749535846391,-287.7642072,0.00022191,4]
[365211900,1749535846400,-460.0,0.00022191,4]
[365211901,1749535846410,-350.0,0.00022191,2]
[365211902,1749535846500,-298.3652595,0.00022191,4]
[365211904,1749535846511,-460.0,0.00022191,4]
[365211906,1749535846521,-460.0,0.00022191,4]
[365211908,1749535846531,-460.0,0.00022191,4]
[365211910,1749535846540,-460.0,0.00022191,4]
[365211912,1749535846549,-460.0,0.00022191,4]
[365211914,1749535846559,-460.0,0.00022191,4]
[365211916,1749535846569,-460.0,0.00022191,4]
[365211918,1749535846581,-460.0,0.00022191,4]
[365211920,1749535846590,-460.0,0.00022191,4]
[365211921,1749535846600,-460.0,0.00022191,4]
[365211922,1749535846609,-535.7082571,0.00022191,4]
[365211923,1749535846619,-460.0,0.00022191,4]
[365211924,1749535846628,-460.0,0.00022191,4]
[365211925,1749535846638,-460.0,0.00022191,4]
[365211926,1749535846647,-460.0,0.00022191,4]
[365211927,1749535846657,-460.0,0.00022191,4]
[365211928,1749535846666,-430.0,0.00022191,4]
[365211929,1749535846676,-1310.73,0.00022191,4]
[365211930,1749535846685,-460.0,0.00022191,4]
[365211931,1749535846694,-460.0,0.00022191,4]
[365211932,1749535846704,-460.0,0.00022191,4]
[365211933,1749535846714,-460.0,0.00022191,4]
[365211934,1749535846724,-460.0,0.00022191,4]
[365211935,1749535846734,-257.24,0.00022191,4]
[365211936,1749535846743,-405.9833694,0.00022191,4]
[365211937,1749535846752,-460.0,0.00022191,4]
[365211938,1749535846762,-669.91,0.00022191,4]
[365211939,1749535846772,-460.0,0.00022191,4]
[365211940,1749535846782,-370.96237727,0.00022191,4]
[365211941,1749535846791,-420.11886293,0.00022191,4]
[365211942,1749535846801,-368.06885706,0.00022191,4]
[365211943,1749535846811,-360.38778703,0.00022191,4]
[365211944,1749535846820,-460.0,0.00022191,4]
[365211945,1749535846830,-460.0,0.00022191,4]
[365211946,1749535846839,-460.0,0.00022191,4]
[365211947,1749535846849,-460.0,0.00022191,2]
[365211948,1749535846859,-893.64,0.00022191,4]
[365211949,1749535846869,-3561.64,0.00022191,4]
[365211950,1749535846878,-292.49848653,0.00022191,4]
[365211951,1749535846888,-460.0,0.00022191,4]
[365211952,1749535846897,-910.71,0.00022191,4]
[365211953,1749535846907,-460.0,0.00022191,4]
[365211954,1749535846917,-1028.51,0.00022191,4]
[365211955,1749535846926,-460.0,0.00022191,4]
[365211956,1749535846936,-1079.41,0.00022191,4]
[365211957,1749535846945,-460.0,0.00022191,4]
[365211958,1749535846955,-324.41798304,0.00022191,4]
[365211959,1749535846964,-460.0,0.00022191,4]
[365211960,1749535846974,-460.0,0.00022191,4]
[365211961,1749535846983,-460.0,0.00022191,4]
[365211962,1749535846993,-460.0,0.00022191,4]
[365211963,1749535847002,-460.0,0.00022191,4]
[365211964,1749535847011,-460.0,0.00022191,4]
[365211965,1749535847021,-839.23,0.00022191,4]
[365211966,1749535847030,-460.0,0.00022191,4]
[365211967,1749535847039,-460.0,0.00022191,4]
[365211968,1749535847049,-460.0,0.00022191,4]
[365211969,1749535847059,-246.23983499,0.00022191,4]
[365211970,1749535847068,-460.0,0.00022191,4]
[365211971,1749535847078,-1128.69,0.00022191,4]
[365211972,1749535847087,-460.0,0.00022191,4]
[365211973,1749535847098,-460.0,0.00022191,4]
[365211974,1749535847109,-3000.0,0.000222,2]
[365211975,1749535847119,-419.94,0.000222,7]
[365211976,1749535847128,-160.65084304,0.000222,69]
[365211977,1749535847137,-160.65084302,0.000222,69]
[365211978,1749535847146,-3000.0,0.0002221,2]
[365211979,1749535847157,-1000.0,0.00022221,2]
[365211980,1749535847167,-1000.0,0.00022221,2]
[365211981,1749535847177,-1200.0,0.00022221,2]
[365211982,1749535847187,-1000.0,0.00022221,2]
[365211983,1749535847198,-1000.0,0.00022221,2]
[365211984,1749535847208,-504.02227482,0.00022273,2]
[365211985,1749535847218,-500.0,0.00022273,2]
[365211986,1749535847227,-500.0,0.00022273,2]
[365211987,1749535847237,-1448.0,0.00022303,7]
[365211988,1749535847247,-532.23156361,0.00022314,7]
[365211989,1749535847256,-151.0,0.00022331,7]
[365211990,1749535847265,-158.185166,0.00022331,7]
[365211991,1749535847274,-163.207857,0.00022331,7]
[365211992,1749535847284,-163.207857,0.00022331,7]
[365211993,1749535847293,-151.0,0.00022331,7]
[365211994,1749535847303,-151.0,0.00022331,7]
[365211995,1749535847312,-151.0,0.00022331,7]
[365211996,1749535847322,-500.0,0.00022342,2]
[365211997,1749535847331,-500.0,0.00022392,2]
[365211998,1749535847340,-1448.0,0.00022426,7]
[365211999,1749535847349,-380.5,0.00022451,3]
[365212000,1749535847359,-1522.02,0.00022455,3]
[365212001,1749535847369,-761.0,0.00022455,3]
[365212002,1749535847378,-460.0,0.00022465,4]
[365212003,1749535847388,-360.0,0.00022465,4]
[365212004,1749535847398,-340.0,0.00022465,4]
[365212005,1749535847407,-151.587511,0.00022465,7]
[365212006,1749535847416,-400.0,0.00022465,2]
[365212007,1749535847426,-510.4784662,0.00022465,4]
[365212008,1749535847435,-460.0,0.00022465,4]
[365212009,1749535847446,-453.16251043,0.00022465,4]
[365212010,1749535847455,-460.0,0.00022465,4]
[365212011,1749535847464,-460.0,0.00022465,4]
[365212012,1749535847474,-460.0,0.00022465,4]
[365212013,1749535847483,-260.0,0.00022465,4]
[365212014,1749535847493,-151.0,0.00022465,7]
[365212015,1749535847502,-172.19409214,0.00022465,4]
[365212016,1749535847511,-151.0,0.00022465,7]
[365212017,1749535847521,-460.0,0.00022465,4]
[365212018,1749535847530,-460.0,0.00022465,4]
[365212019,1749535847539,-176.76484331,0.00022465,4]
[365212020,1749535847548,-460.0,0.00022465,4]
[365212021,1749535847557,-460.0,0.00022465,4]
[365212022,1749535847566,-301.2846431,0.00022465,4]
[365212023,1749535847576,-460.0,0.00022465,4]
[365212024,1749535847586,-460.0,0.00022465,4]
[365212025,1749535847595,-460.0,0.00022465,4]
[365212026,1749535847604,-460.0,0.00022465,4]